bitfinex-derivatives/quotes_ETHF0:USTF0_20250807
["timestamp","ask_amount","ask_price","bid_price","bid_amount"]
[1754579027282,0.4663,3822.8,3822.7,2.20926]
[1754579028485,0.9419,3822.8,3822.7,2.20926]
[1754579028979,1.6638,3822.8,3822.7,2.20926]
[1754579029186,1.216,3822.8,3822.7,2.20926]
[1754579029489,0.69839665,3823.3,3823.2,0.523]
[1754579029790,1.3752348,3823.9,3823.8,1.92712]
[1754579029791,1.3884,3823.9,3823.8,1.92712]
[1754579029992,1.3849,3823.9,3823.8,1.92712]
[1754579030294,1.216,3823.9,3823.8,1.92712]
[1754579030595,0.9419,3823.9,3823.8,2.20912]
[1754579030892,1.6638,3823.9,3823.8,1.1256]
[1754579031093,1.6638,3823.9,3823.8,0.4843]
[1754579032390,1.6638,3823.9,3823.8,1.1256]
[1754579032590,0.6617,3824.2,3824.1,0.6709]
[1754579032795,1.216,3824.2,3824.1,2.20908]
[1754579032991,0.4478,3824.1,3823.4,1.0153]
[1754579033296,1.6638,3824.0,3823.9,1.92709]
[1754579033891,1.6638,3824.0,3823.6,0.2786]
[1754579034093,1.6638,3823.7,3823.6,1.1256]
[1754579034692,0.3876,3823.4,3823.3,0.939]
[1754579034895,1.6638,3823.4,3823.3,0.939]
[1754579035193,1.6638,3823.4,3823.3,1.92718]
[1754579035592,1.216,3823.4,3823.3,2.20918]
[1754579035896,1.6638,3823.8,3823.7,0.52292]
[1754579036097,0.9371,3823.7,3823.6,1.00724]
[1754579036295,1.6638,3823.7,3823.6,1.00724]
[1754579036685,0.6617,3823.4,3823.3,1.74058]
[1754579036890,1.6638,3823.4,3823.3,1.92718]
[1754579037285,0.5543,3823.3,3822.7,0.4547]
[1754579037485,1.6638,3823.0,3822.9,1.46203]
[1754579037892,1.6638,3823.0,3822.9,1.92723]
[1754579038096,0.7404,3823.0,3822.9,2.20923]
[1754579038292,1.6638,3823.0,3822.9,2.20923]
[1754579038595,1.216,3823.0,3822.9,2.20923]
[1754579039691,1.216,3823.0,3822.9,1.6862]
[1754579040094,1.6638,3823.0,3822.9,1.6862]
[1754579040295,1.6638,3823.0,3822.4,1.30777]
[1754579040296,0.9406,3822.6,3822.5,1.1256]
[1754579040590,1.86219,3822.1,3820.9,0.5606]
[1754579040796,0.6617,3821.1,3821.0,1.0076]
[1754579041102,1.6638,3821.1,3821.0,1.9275]
[1754579042496,0.2741,3821.2,3821.1,0.52327]
[1754579042795,0.20756923,3822.3,3821.1,0.5606]
[1754579043000,1.216,3821.8,3821.7,1.64879]
[1754579043193,1.6638,3821.8,3821.7,1.92739]
[1754579043398,1.0021,3821.8,3820.0,0.26690943]
[1754579043589,1.6638,3821.4,3821.3,0.52325]
[1754579043793,1.6638,3821.4,3821.3,1.92745]
[1754579043990,1.0021,3822.3,3821.6,0.5232]
[1754579044295,1.6638,3821.7,3821.6,1.9274]
[1754579045389,1.6638,3821.7,3821.6,1.4042]
[1754579045594,0.52315,3822.1,3821.6,0.52321]
[1754579045791,0.6617,3821.5,3821.2,0.2786]
[1754579046096,1.6638,3821.1,3821.0,1.9275]
[1754579046289,0.52328,3821.2,3820.7,0.52334]
[1754579046502,0.6617,3820.7,3820.6,1.46235]
[1754579046801,1.6638,3820.7,3820.6,1.46235]
[1754579047102,1.6638,3820.7,3820.3,0.4547]
[1754579047103,0.52335,3820.7,3820.3,0.4547]
[1754579047303,1.0021,3820.4,3820.3,0.4547]
[1754579047804,1.0021,3821.4,3820.7,0.52333]
[1754579048102,0.52328,3821.2,3820.8,0.52332]
[1754579048296,0.52327,3821.3,3820.1,1.30856]
[1754579048504,0.5543,3820.8,3820.7,0.80194]
[1754579048802,1.0021,3820.8,3820.7,0.80194]
[1754579049003,1.0021,3820.8,3820.7,0.52334]
[1754579049407,1.0021,3820.8,3820.7,0.97804]
[1754579049600,1.0021,3820.8,3820.7,1.25664]
[1754579050401,0.2754,3820.8,3820.7,1.53864]
[1754579050706,1.0021,3821.3,3821.2,0.52327]
[1754579051007,18.319,3821.5,3821.4,0.52324]
[1754579051203,18.5944,3821.5,3821.4,1.53854]
[1754579051399,19.3211,3821.5,3821.4,0.97794]
[1754579052105,18.5944,3821.5,3821.4,0.97794]
[1754579052409,0.2754,3821.5,3821.4,0.52324]
[1754579052713,0.2754,3821.3,3820.8,0.52333]
[1754579052907,0.5543,3821.3,3821.2,1.25817]
[1754579053111,0.5543,3821.3,3821.2,1.55727]
[1754579054812,1.3689,3821.3,3821.2,0.52327]
[1754579055017,1.6536,3821.3,3821.2,0.52327]
[1754579055212,1.3747,3821.3,3820.9,0.431]
[1754579055421,0.6822,3821.1,3821.0,0.5233]
[1754579055617,1.6799,3821.1,3821.0,0.5233]
[1754579056018,1.6799,3821.1,3820.9,0.95431]
[1754579056318,1.6799,3821.0,3820.9,0.52331]
[1754579056622,1.2628,3821.0,3820.9,2.24811]
[1754579056922,1.2628,3821.3,3821.2,2.24807]
[1754579057620,0.1996,3822.1,3821.3,1.30814]
[1754579057817,1.6799,3822.0,3821.9,1.4257]
[1754579058120,1.6799,3822.0,3821.9,1.1218]
[1754579058320,1.6799,3822.0,3821.9,0.4894]
[1754579058521,1.6799,3822.0,3821.9,0.3034]
[1754579058715,0.7023,3821.8,3821.2,0.7349]
[1754579058916,1.6799,3821.3,3821.2,0.52327]
[1754579059429,0.6822,3821.2,3820.9,0.52331]
[1754579059621,1.6799,3821.1,3821.0,0.52329]
[1754579059920,1.6799,3821.0,3820.9,0.5233]
[1754579060218,1.6799,3821.0,3820.9,1.0127]
[1754579060421,1.6799,3821.0,3817.5,5.96505406]
[1754579060422,0.52336,3820.6,3820.3,0.52339]
[1754579060621,1.6799,3820.4,3820.3,1.01279]
[1754579061021,2.20328,3820.4,3820.1,0.52342]
[1754579061219,0.9977,3820.3,3820.1,0.52342]
[1754579061419,1.2628,3820.1,3820.0,1.2243]
[1754579061620,1.6799,3820.1,3820.0,0.9204]
[1754579061922,1.6799,3820.1,3820.0,0.82684]
[1754579062222,1.6799,3820.1,3820.0,1.44384]
[1754579062421,1.6799,3820.1,3820.0,1.94914]
[1754579062619,1.2628,3820.1,3819.9,1.46586071]
[1754579062819,1.6799,3820.0,3819.9,1.46586071]
[1754579063022,1.6799,3820.0,3819.9,2.58766071]
[1754579063224,1.6799,3820.0,3819.9,2.89156071]
[1754579063518,0.9776,3820.6,3820.5,0.4894]
[1754579063713,1.6799,3820.6,3820.5,1.4257]
[1754579064315,1.6799,3820.6,3820.5,1.1218]
[1754579064516,0.2954,3820.6,3820.5,1.7248]
[1754579064825,1.6799,3820.9,3820.8,0.6908]
[1754579065727,0.6822,3820.9,3820.6,0.95434]
[1754579065916,0.2954,3820.2,3820.0,0.52344]
[1754579066117,0.52344,3820.0,3819.8,0.431]
[1754579066422,0.4171,3819.3,3818.3,0.2991]
[1754579066623,0.52364,3818.6,3818.1,0.52368]
[1754579066824,0.2852,3818.1,3817.6,0.7349]
[1754579067016,0.2852,3817.9,3817.0,1.034]
[1754579067217,0.7125,3817.8,3817.3,0.5238]
[1754579067415,1.30898,3818.9,3817.0,0.7349]
[1754579067416,0.9977,3817.7,3817.0,0.7349]
[1754579067615,0.9977,3818.2,3817.2,0.603]
[1754579067925,1.22599,3818.2,3817.5,0.52377]
[1754579068126,0.2954,3818.1,3817.3,0.431]
[1754579068525,0.2954,3818.1,3817.4,0.3039]
[1754579068720,0.5806,3818.0,3817.7,0.3039]
[1754579068920,0.9977,3817.9,3817.8,0.52374]
[1754579069125,0.5806,3817.9,3817.8,1.25864]
[1754579070024,0.4171,3818.3,3817.8,0.7349]
[1754579070226,0.9977,3818.3,3818.2,0.95468]
[1754579070622,0.5806,3818.7,3818.4,0.3039]
[1754579070819,0.9977,3818.7,3818.2,0.431]
[1754579071024,0.5806,3818.8,3817.9,0.7349]
[1754579071224,0.9977,3818.8,3818.0,0.2991]
[1754579071527,0.9977,3819.1,3818.5,0.52364]
[1754579071728,0.4171,3818.9,3818.7,0.95461]
[1754579071922,18.84654,3819.3,3818.9,0.52358]
[1754579071923,18.323,3819.3,3818.9,0.52358]
[1754579072130,18.9036,3819.3,3818.7,0.7349]
[1754579072324,0.5806,3819.2,3819.1,0.7349]
[1754579072525,0.2954,3819.2,3819.1,0.7349]
[1754579072724,0.52347,3819.8,3819.3,0.52353]
[1754579072921,0.52344,3820.0,3819.5,0.52349]
[1754579073123,38.20843,3820.1,3819.6,0.52349]
[1754579073527,0.9977,3820.0,3819.6,0.52349]
[1754579073726,0.2954,3819.9,3819.8,0.52345]
[1754579073928,0.2954,3819.9,3819.8,0.95445]
[1754579074122,0.2954,3819.9,3819.4,0.2991]
[1754579074123,0.4171,3820.3,3819.7,1.3087]
[1754579074327,0.2852,3820.4,3820.3,0.9544]
[1754579074624,0.2954,3820.7,3820.6,0.52335]
[1754579074823,0.2954,3820.7,3820.6,0.7349]
[1754579075031,0.9977,3821.1,3820.3,0.52339]
[1754579075231,0.2954,3820.5,3820.4,0.52338]
[1754579075428,0.52333,3820.8,3820.4,0.52338]
[1754579075628,0.2954,3820.6,3820.1,0.431]
[1754579075831,0.4171,3820.2,3819.9,0.52344]
[1754579076126,0.9977,3820.0,3819.9,0.52344]
[1754579076433,0.5806,3820.3,3820.2,0.5234]
[1754579076630,0.9977,3820.2,3820.0,0.52342]
[1754579076831,0.9977,3820.1,3820.0,0.52342]
[1754579077431,0.9977,3820.1,3820.0,0.431]
[1754579077633,1.52105,3820.7,3820.0,0.7349]
[1754579078036,1.52105,3820.7,3819.7,0.2991]
[1754579078037,0.2954,3820.7,3819.7,0.3039]
[1754579078225,0.81875,3820.7,3819.8,0.7349]
[1754579078432,0.52339,3820.4,3819.9,0.52345]
[1754579078627,0.2954,3820.2,3819.7,0.2991]
[1754579078832,1.30833,3820.8,3819.2,0.431]
[1754579078833,0.7023,3819.8,3819.2,0.431]
[1754579079037,0.52345,3819.9,3819.4,0.52351]
[1754579079237,0.5806,3819.6,3819.5,0.431]
[1754579079434,0.9977,3819.6,3819.5,0.431]
[1754579079627,0.9977,3820.1,3819.5,0.7349]
[1754579079827,0.5806,3820.3,3820.1,0.7349]
[1754579080033,0.5806,3820.2,3820.1,0.431]
[1754579080235,0.2852,3820.1,3820.0,0.52344]
[1754579080435,0.9977,3820.1,3820.0,0.52344]
[1754579080738,0.5806,3820.1,3820.0,1.25834]
[1754579081435,0.5806,3820.4,3820.2,1.034]
[1754579081736,0.9977,3820.4,3819.8,1.034]
[1754579081936,1.30831,3820.9,3819.8,1.034]
[1754579081937,0.52342,3820.2,3819.8,1.25355]
[1754579082138,0.2954,3820.3,3819.2,1.30885]
[1754579082139,0.52344,3820.0,3819.5,0.5235]
[1754579082337,0.9977,3819.8,3819.5,0.9545]
[1754579082539,0.2852,3819.6,3819.1,1.30891]
[1754579082731,0.94056,3819.9,3819.2,0.95455]
[1754579082732,0.5806,3819.4,3819.2,0.95455]
[1754579082933,0.5806,3819.4,3819.3,0.4439]
[1754579083333,0.5806,3819.4,3819.3,0.7442]
[1754579083735,1.0326,3819.4,3819.3,0.96743]
[1754579084132,1.0326,3819.4,3819.3,1.26773]
[1754579084337,1.30855,3820.2,3819.1,0.4439]
[1754579084338,1.30865,3819.9,3819.1,0.4439]
[1754579084537,0.566,3819.2,3819.1,1.26775]
[1754579084834,0.566,3819.2,3819.1,0.7442]
[1754579085037,0.2868,3819.2,3819.1,1.0433]
[1754579085432,0.566,3819.2,3819.1,1.0433]
[1754579086035,0.2792,3819.5,3819.0,1.30893]
[1754579086239,0.2868,3819.5,3819.4,0.52351]
[1754579086440,0.2868,3819.5,3819.4,1.56681]
[1754579086641,0.2868,3819.7,3819.6,1.26768]
[1754579086842,0.2868,3819.7,3819.6,1.56678]
[1754579087342,0.566,3819.7,3819.6,1.56678]
[1754579087745,0.566,3819.9,3819.8,0.3003]
[1754579087944,0.566,3819.4,3819.3,0.52352]
[1754579088139,0.2792,3819.8,3818.6,1.75297]
[1754579088340,0.566,3819.7,3819.5,0.5994]
[1754579088545,0.566,3819.6,3819.5,0.3003]
[1754579088736,1.30854,3820.2,3819.1,0.2991]
[1754579089044,1.018,3819.4,3819.3,0.96743]
[1754579089244,1.018,3819.4,3819.3,0.4439]
[1754579089741,0.566,3819.4,3819.3,0.7442]
[1754579089938,0.566,3819.4,3819.3,1.0433]
[1754579090441,1.018,3819.4,3819.0,0.3003]
[1754579090746,1.30865,3819.9,3819.0,0.3003]
[1754579090747,1.018,3819.7,3819.6,0.4439]
[1754579091046,0.2792,3819.5,3819.4,1.56681]
[1754579091345,0.566,3819.5,3819.4,1.56681]
[1754579091740,0.566,3819.5,3819.4,1.0433]
[1754579093148,0.2868,3819.5,3819.4,1.0433]
[1754579093446,0.70516711,3820.5,3820.3,0.52339]
[1754579093652,0.70516711,3820.5,3819.7,1.0433]
[1754579093653,0.566,3820.7,3820.5,0.7442]
[1754579093841,0.2868,3820.7,3820.6,0.7442]
[1754579094038,3.62169191,3821.1,3820.6,1.0433]
[1754579094243,0.2868,3821.0,3820.9,0.7442]
[1754579094742,0.2868,3821.0,3820.4,0.7442]
[1754579094935,0.2792,3821.0,3820.4,0.7442]
[1754579095137,0.452,3820.6,3819.5,1.30876]
[1754579095346,0.2792,3820.4,3819.9,0.7442]
[1754579095541,1.018,3820.5,3820.1,0.96731]
[1754579095847,1.54137,3820.6,3820.1,0.96731]
[1754579096140,0.452,3820.2,3820.1,0.96731]
[1754579096339,1.018,3820.2,3820.1,0.4439]
[1754579096539,1.018,3820.3,3819.8,0.4439]
[1754579096739,0.52339,3820.4,3819.8,0.4439]
[1754579096940,0.52339,3820.4,3820.0,0.52344]
[1754579097136,0.566,3820.1,3820.0,0.82374]
[1754579097637,0.52334,3820.7,3820.0,0.4439]
[1754579097843,0.7312,3820.6,3820.1,0.52342]
[1754579098047,0.52337,3820.6,3820.1,0.52342]
[1754579098244,0.452,3821.0,3819.9,1.30863]
[1754579098446,1.018,3820.8,3820.6,0.7442]
[1754579098648,1.018,3820.8,3820.2,0.2991]
[1754579098649,0.566,3820.8,3820.4,0.52337]
[1754579098848,0.52337,3820.6,3820.4,0.4439]
[1754579099051,1.018,3820.5,3820.4,0.4439]
[1754579099558,1.018,3820.5,3820.4,0.7442]
[1754579099850,1.54137,3820.5,3820.4,0.4439]
[1754579100044,1.018,3820.5,3820.4,0.4439]
[1754579100238,0.2792,3820.3,3820.2,0.2991]
[1754579100447,1.018,3820.0,3819.9,0.52344]
[1754579100744,0.2868,3820.6,3820.3,0.52338]
[1754579100949,1.018,3820.5,3820.4,0.4439]
[1754579101154,0.566,3820.5,3820.4,1.0433]
[1754579101351,0.52339,3820.4,3820.1,0.96731]
[1754579101546,0.566,3820.5,3820.3,0.52338]
[1754579101747,0.2868,3820.5,3820.4,0.4439]
[1754579101949,0.52338,3820.4,3820.1,0.52342]
[1754579102252,1.018,3821.3,3820.2,0.5234]
[1754579102444,0.52335,3820.7,3820.3,0.52338]
[1754579102644,1.018,3820.6,3820.4,0.96727]
[1754579102839,1.018,3820.5,3820.4,0.4439]
[1754579103055,0.2868,3820.3,3820.1,0.82371]
[1754579103247,0.52338,3820.4,3820.1,1.26761]
[1754579103549,1.018,3820.9,3819.7,0.4439]
[1754579103750,0.2792,3820.4,3819.7,0.4439]
[1754579103947,1.3083,3820.9,3819.3,0.5994]
[1754579103948,0.2868,3820.1,3819.5,0.4439]
[1754579104152,0.566,3820.9,3820.2,0.3003]
[1754579104355,0.566,3820.9,3820.1,0.4439]
[1754579104356,0.52334,3820.8,3820.5,0.52336]
[1754579104546,0.566,3820.7,3820.6,0.7442]
[1754579104847,0.566,3821.1,3820.6,1.0433]
[1754579105040,0.2868,3820.9,3820.8,0.7442]
[1754579105246,0.566,3820.9,3820.8,0.7442]
[1754579105848,0.566,3820.9,3820.8,0.4439]
[1754579106046,1.018,3820.9,3820.8,0.4439]
[1754579106242,1.018,3820.8,3820.5,0.96727]
[1754579106543,1.018,3821.6,3820.5,0.4439]
[1754579106748,1.018,3821.4,3820.5,0.7442]
[1754579106945,1.018,3821.2,3820.6,0.3003]
[1754579107344,1.018,3821.0,3820.6,0.3003]
[1754579107548,0.52328,3821.2,3820.9,0.52331]
[1754579107751,1.018,3821.0,3820.9,0.52331]
[1754579107950,0.2868,3821.6,3820.9,0.5994]
[1754579108145,0.7312,3821.6,3821.5,0.3003]
[1754579108354,0.7312,3821.8,3821.6,1.26742]
[1754579108661,1.30798,3821.8,3819.5,37.692]
[1754579108947,1.30798,3821.8,3820.7,0.96724]
[1754579109152,1.018,3820.8,3820.7,0.52334]
[1754579109353,0.52333,3820.8,3820.6,0.52335]
[1754579109554,0.52333,3820.8,3820.6,0.96725]
[1754579109757,0.2868,3820.7,3820.6,0.52335]
[1754579109953,1.54137,3820.5,3819.8,1.30867]
[1754579110254,0.452,3820.0,3819.9,0.52345]
[1754579110454,1.018,3820.0,3819.9,0.52345]
[1754579110646,0.75171274,3820.0,3819.9,0.52345]
[1754579110844,0.566,3819.9,3819.8,0.96736]
[1754579111049,0.566,3819.9,3819.8,1.26766]
[1754579111752,0.566,3819.9,3819.3,1.30882]
[1754579111753,0.52349,3819.7,3819.5,0.4439]
[1754579112056,0.2792,3820.6,3819.8,0.52346]
[1754579112251,0.2792,3820.6,3819.6,0.7442]
[1754579112646,1.018,3820.0,3819.9,0.4439]
[1754579112847,0.7388,3820.0,3819.7,0.52347]
[1754579113053,0.737,3819.9,3819.7,0.96307]
[1754579113356,0.7269,3820.0,3819.9,0.96304]
[1754579113662,0.2786,3820.3,3819.7,1.3087]
[1754579113954,0.52339,3820.4,3820.2,0.4396]
[1754579114154,0.4483,3820.3,3820.2,0.4396]
[1754579114655,0.52341,3820.2,3819.9,0.52344]
[1754579114856,0.52345,3820.0,3819.8,0.80686]
[1754579115058,0.5673,3819.9,3819.8,1.08846]
[1754579115648,0.5673,3819.9,3819.7,0.52347]
[1754579115853,1.0156,3819.8,3819.5,0.4396]
[1754579116055,0.52343,3820.1,3819.9,0.52345]
[1754579116258,0.52341,3820.3,3820.0,0.52343]
[1754579116554,0.5234,3820.3,3820.0,0.80503]
[1754579116760,0.5673,3820.2,3820.1,0.7212]
[1754579117061,1.0156,3820.2,3819.7,1.24467]
[1754579117358,1.0156,3820.1,3820.0,0.52343]
[1754579117659,0.2786,3819.7,3819.5,0.4396]
[1754579117854,1.0156,3819.6,3819.5,1.2447]
[1754579118054,1.0156,3819.6,3819.5,0.5235]
[1754579118661,1.0156,3819.6,3819.5,0.9631]
[1754579119156,1.0156,3819.6,3819.5,1.2447]
[1754579120261,0.5673,3819.6,3819.5,1.2447]
[1754579120456,0.5673,3819.6,3819.5,1.5281]
[1754579120657,0.4483,3820.0,3819.9,0.52345]
[1754579120860,1.0156,3820.0,3819.9,0.52345]
[1754579121049,0.2887,3819.9,3819.5,0.2834]
[1754579121250,0.4483,3819.8,3819.6,0.80509]
[1754579121557,0.4483,3819.8,3819.7,0.4396]
[1754579121759,0.4483,3819.8,3819.7,0.7212]
[1754579121960,1.0156,3819.8,3819.7,0.7212]
[1754579122158,0.70948797,3820.6,3819.7,0.7212]
[1754579122159,0.70948797,3820.6,3820.5,0.52337]
[1754579122460,0.5673,3820.6,3820.5,1.24457]
[1754579122659,0.70948797,3821.0,3820.8,0.52333]
[1754579122964,0.70948797,3821.0,3820.9,0.7212]
[1754579123258,1.0156,3821.0,3820.9,0.7212]
[1754579123960,1.0156,3820.9,3820.8,0.96293]
[1754579124156,1.3752348,3821.5,3821.4,0.52324]
[1754579124157,2.53302277,3821.5,3821.4,0.52324]
[1754579124463,0.2887,3821.5,3821.4,1.24444]
[1754579124758,0.5673,3821.5,3821.4,1.24444]
[1754579124959,0.2887,3821.5,3821.4,1.24444]
[1754579125156,1.0156,3822.0,3821.4,0.7212]
[1754579125358,0.2887,3821.9,3821.8,0.52319]
[1754579125554,0.5673,3821.9,3821.8,0.80479]
[1754579125959,1.0156,3821.9,3821.8,0.80479]
[1754579126160,1.0156,3821.9,3821.8,1.24439]
[1754579126361,1.0156,3821.9,3821.8,0.96279]
[1754579126557,0.5673,3821.6,3821.2,0.52327]
[1754579126763,0.2887,3821.4,3820.7,0.4396]
[1754579126958,1.0156,3821.3,3821.2,0.52326]
[1754579127160,1.53887,3821.3,3821.1,0.52328]
[1754579127362,1.0156,3821.2,3821.1,0.52328]
[1754579127952,1.30801,3821.8,3820.8,0.52332]
[1754579127953,1.30799,3821.8,3820.8,0.52332]
[1754579128261,0.52326,3821.3,3821.0,0.52329]
[1754579128562,1.0156,3821.1,3820.9,0.5233]
[1754579128863,0.52328,3821.2,3820.9,0.5233]
[1754579128864,1.0156,3821.0,3820.9,0.5233]
[1754579129559,0.52333,3820.8,3820.7,0.4396]
[1754579129768,0.52335,3820.7,3820.5,0.7212]
[1754579129962,1.25027,3820.5,3820.3,0.4396]
[1754579130261,0.5234,3820.3,3820.1,0.4396]
[1754579130562,1.53906,3819.9,3819.6,0.52348]
[1754579130866,1.0156,3819.7,3819.6,0.4396]
[1754579131257,1.0156,3819.7,3819.6,0.7212]
[1754579131860,1.0156,3819.7,3819.6,0.4396]
[1754579132368,1.0156,3819.7,3819.6,0.7212]
[1754579133053,0.5673,3819.7,3819.6,1.0046]
[1754579134059,0.5673,3819.7,3819.6,0.7212]
[1754579134265,1.0156,3819.7,3819.6,0.7212]
[1754579134662,0.5673,3819.7,3819.6,0.7212]
[1754579134853,0.2887,3820.0,3819.9,0.52344]
[1754579135057,0.2887,3820.0,3819.9,2.19534]
[1754579135263,1.668,3820.0,3819.9,1.3885]
[1754579135660,0.7251543,3820.4,3820.3,2.1953]
[1754579135855,0.7251543,3820.8,3820.7,1.52794]
[1754579136059,0.2887,3821.0,3820.9,1.52791]
[1754579136259,0.737,3821.3,3821.1,0.52328]
[1754579136460,0.4483,3821.3,3821.1,0.52328]
[1754579136657,0.7251543,3821.4,3821.1,1.08828]
[1754579136864,0.2887,3821.6,3821.0,1.30824]
[1754579137067,0.2887,3821.6,3821.5,1.0046]
[1754579137467,0.2887,3821.6,3821.5,1.52782]
[1754579137769,1.0156,3821.6,3821.5,0.4396]
[1754579138268,1.0156,3821.5,3821.3,0.96285]
[1754579138459,0.52323,3821.6,3821.3,0.96285]
[1754579138765,1.0156,3821.4,3821.3,0.96285]
[1754579139558,1.0156,3821.4,3821.3,0.52325]
[1754579139768,1.30799,3821.8,3821.2,0.52326]
[1754579139972,0.7269,3821.6,3821.2,0.96286]
[1754579140270,0.52326,3821.3,3821.2,0.96287]
[1754579140468,1.53886,3821.3,3821.2,0.52327]
[1754579140663,1.0156,3821.3,3821.2,0.52327]
[1754579141078,0.52323,3821.5,3820.9,0.2816]
[1754579141263,1.0156,3821.3,3821.0,0.7212]
[1754579141458,0.4483,3821.2,3821.1,0.96289]
[1754579142261,1.0156,3821.2,3821.1,0.96289]
[1754579142667,0.5673,3821.2,3821.1,1.24449]
[1754579142871,0.7493,3821.8,3821.7,0.9437]
[1754579143173,1.0261543,3822.0,3821.9,1.52758]
[1754579143366,0.301,3822.0,3821.9,1.52758]
[1754579143766,0.5957,3822.0,3821.9,1.52758]
[1754579144069,1.0376,3822.0,3821.9,1.24498]
[1754579145073,1.0376,3822.0,3820.7,0.52333]
[1754579145074,0.52326,3821.3,3820.7,0.52333]
[1754579145276,1.11897,3821.2,3820.6,0.7218]
[1754579145571,0.52327,3821.3,3820.7,0.4205]
[1754579145771,0.5233,3821.0,3820.7,0.52334]
[1754579145973,1.0376,3820.8,3820.7,0.52334]
[1754579146271,1.0376,3820.8,3820.7,1.24514]
[1754579146469,1.0376,3820.8,3820.7,0.7218]
[1754579146873,0.5957,3820.8,3820.7,0.7218]
[1754579147174,0.2947,3821.2,3820.7,1.0044]
[1754579147475,1.02470304,3821.4,3821.3,1.0044]
[1754579147775,1.31940304,3821.5,3821.4,0.4205]
[1754579147977,1.76130304,3821.5,3821.4,0.4205]
[1754579148172,0.72370304,3821.5,3821.2,0.52326]
[1754579148369,0.4419,3821.4,3821.3,0.4205]
[1754579148872,0.52325,3821.4,3821.1,0.52328]
[1754579149069,1.0376,3821.2,3821.1,0.94378]
[1754579149271,0.5957,3821.2,3821.1,1.24508]
[1754579149474,1.0376,3821.5,3821.4,0.4205]
[1754579149778,1.76130304,3821.5,3821.4,0.4205]
[1754579150273,0.72370304,3821.5,3821.4,1.0044]
[1754579150480,18.594,3822.0,3821.4,0.5839]
[1754579150677,0.72370304,3821.9,3821.7,0.5232]
[1754579150875,1.0376,3821.8,3821.7,0.9437]
[1754579151275,0.72370304,3821.9,3821.5,0.94373]
[1754579151276,0.7366,3821.6,3821.5,0.94373]
[1754579151473,1.0376,3821.6,3821.4,0.52324]
[1754579151669,0.7366,3821.5,3821.1,0.4205]
[1754579151978,1.24688304,3821.9,3821.6,0.52321]
[1754579152173,0.5232,3821.8,3821.5,0.52322]
[1754579152380,1.0376,3821.7,3821.5,0.94372]
[1754579152579,1.0376,3821.6,3821.4,0.52324]
[1754579152776,1.0376,3821.4,3821.2,0.52326]
[1754579152974,0.301,3821.3,3821.2,1.24507]
[1754579153175,1.31940304,3821.9,3821.8,0.52319]
[1754579153379,1.31940304,3821.9,3821.8,1.52759]
[1754579153380,1.32035089,3821.9,3821.8,1.52759]
[1754579153775,0.5957,3821.9,3821.8,1.52759]
[1754579153975,18.293,3822.0,3821.8,0.80579]
[1754579154283,18.8887,3822.0,3821.9,0.7218]
[1754579155281,1.11888,3821.9,3821.6,0.4205]
[1754579155484,0.5957,3821.7,3821.6,0.94372]
[1754579155777,0.5957,3821.7,3821.6,0.4205]
[1754579155778,1.0376,3821.7,3821.6,0.4205]
[1754579155976,1.0376,3821.7,3821.5,0.52323]
[1754579156175,1.0376,3821.6,3821.5,0.52323]
[1754579156375,18.594,3822.0,3821.9,0.2826]
[1754579156580,18.594,3822.0,3821.9,1.0044]
[1754579157080,0.52318,3821.9,3821.6,0.80581]
[1754579157282,1.0376,3821.8,3821.7,0.4205]
[1754579157483,1.7129,3821.8,3821.2,0.2826]
[1754579157783,0.52318,3821.9,3821.3,0.80496]
[1754579157784,1.7129,3821.4,3821.3,0.80496]
[1754579158080,1.7129,3821.4,3821.3,1.41786]
[1754579158480,1.7129,3821.4,3821.3,0.8946]
[1754579158677,0.3942,3821.1,3820.8,0.2826]
[1754579158879,1.0376,3820.4,3820.3,0.4205]
[1754579159075,1.0376,3820.4,3820.1,0.94392]
[1754579159285,0.5957,3820.2,3820.1,0.82471]
[1754579159480,0.5957,3820.2,3820.1,0.5839]
[1754579159784,1.0376,3820.2,3820.1,0.3013]
[1754579159977,1.0376,3820.2,3820.0,0.52343]
[1754579160284,0.4419,3820.2,3820.1,0.7218]
[1754579160777,1.0376,3820.2,3820.1,0.4205]
[1754579161084,1.0376,3820.2,3820.1,0.7218]
[1754579161779,18.288,3820.8,3819.7,1.0044]
[1754579161980,0.301,3820.1,3819.8,0.52345]
[1754579162183,0.7366,3820.0,3819.8,0.52346]
[1754579162481,0.5234,3820.3,3819.8,0.52346]
[1754579162482,1.0376,3819.9,3819.8,0.4205]
[1754579162981,0.5957,3820.6,3819.8,0.7218]
[1754579163285,0.2947,3820.6,3820.4,0.3013]
[1754579163582,0.5957,3820.5,3820.3,0.52339]
[1754579163784,0.5957,3820.4,3820.3,0.52339]
[1754579164175,0.5957,3820.4,3820.3,1.24519]
[1754579164580,0.72595899,3820.8,3820.3,0.7218]
[1754579164776,1.0376,3820.8,3820.7,0.52333]
[1754579164973,1.0376,3820.7,3820.4,0.52338]
[1754579165180,1.0376,3820.7,3820.5,0.52336]
[1754579165382,0.301,3820.6,3820.4,0.52337]
[1754579165582,1.0376,3820.5,3820.4,0.52337]
[1754579165986,1.0376,3820.5,3820.3,0.52339]